[Event "Titled Tuesday Blitz June 20 Late 2023"]
[White "Della Corte, Alessandro"]
[Black "Jaskolka, Tomasz"]
[WhiteFideId "813540"]
[BlackFideId "1170791"]
[WhiteElo "2205"]
[BlackElo "2155"]
[Result "0-1"]
[Round "4"]
[TimeControl "180+2"]
[Date "2023.06.20"]
[WhiteClock "0:01:32"]
[BlackClock "0:00:52"]
[Board "80"]

1. d4 {[%clk 0:03:00]}  d5 {[%clk 0:03:00]} 2. Nf3 {[%clk 0:03:00]}  Nc6 {[%clk 0:02:59]} 3. c4 {[%clk 0:02:59]}  e5 {[%clk 0:02:59]} 4. cxd5 {[%clk 0:02:58]}  Qxd5 {[%clk 0:02:57]} 5. dxe5 {[%clk 0:02:47]}  Qxd1+ {[%clk 0:02:41]} 6. Kxd1 {[%clk 0:02:46]}  Bg4 {[%clk 0:02:41]} 7. Nc3 {[%clk 0:02:40]}  O-O-O+ {[%clk 0:02:35]} 8. Kc2 {[%clk 0:02:34]}  Bb4 {[%clk 0:02:08]} 9. e4 {[%clk 0:02:30]}  Nge7 {[%clk 0:01:57]} 10. Bc4 {[%clk 0:02:19]}  Bxf3 {[%clk 0:01:57]} 11. gxf3 {[%clk 0:02:20]}  Nxe5 {[%clk 0:01:57]} 12. Be2 {[%clk 0:02:18]}  N7c6 {[%clk 0:01:52]} 13. Be3 {[%clk 0:02:17]}  Nd4+ {[%clk 0:01:48]} 14. Bxd4 {[%clk 0:02:17]}  Rxd4 {[%clk 0:01:49]} 15. Rad1 {[%clk 0:02:17]}  Rhd8 {[%clk 0:01:46]} 16. Rxd4 {[%clk 0:02:17]}  Rxd4 {[%clk 0:01:46]} 17. Rd1 {[%clk 0:02:18]}  Bxc3 {[%clk 0:01:45]} 18. Kxc3 {[%clk 0:02:14]}  Rxd1 {[%clk 0:01:45]} 19. Bxd1 {[%clk 0:02:15]}  Kd7 {[%clk 0:01:40]} 20. Kd4 {[%clk 0:02:11]}  Kd6 {[%clk 0:01:38]} 21. f4 {[%clk 0:02:10]}  c5+ {[%clk 0:01:29]} 22. Kc3 {[%clk 0:01:56]}  Ng6 {[%clk 0:01:20]} 23. e5+ {[%clk 0:01:53]}  Ke7 {[%clk 0:01:17]} 24. Kc4 {[%clk 0:01:52]}  Nxf4 {[%clk 0:01:13]} 25. Kxc5 {[%clk 0:01:52]}  Nd3+ {[%clk 0:01:14]} 26. Kd4 {[%clk 0:01:46]}  Nxf2 {[%clk 0:01:06]} 27. Bf3 {[%clk 0:01:46]}  b6 {[%clk 0:01:03]} 28. Kd5 {[%clk 0:01:45]}  Nd3 {[%clk 0:01:01]} 29. b3 {[%clk 0:01:39]}  Nb4+ {[%clk 0:01:00]} 30. Kc4 {[%clk 0:01:39]}  Nxa2 {[%clk 0:00:58]} 31. Kb5 {[%clk 0:01:39]}  Nc1 {[%clk 0:00:53]} 32. b4 {[%clk 0:01:32]}  Nd3 {[%clk 0:00:52]} 0-1


[Site "https://www.chess.com"]

[Event "Titled Tuesday Blitz June 20 Late 2023"]
[White "Rodrigues, Bruno Morado"]
[Black "ATM622"]
[WhiteFideId "2115654"]
[WhiteElo "2040"]
[BlackElo "2636"]
[Result "0-1"]
[Round "4"]
[TimeControl "180+2"]
[Date "2023.06.20"]
[WhiteClock "0:00:20"]
[BlackClock "0:00:23"]
[Board "81"]

1. d4 {[%clk 0:03:00]}  Nf6 {[%clk 0:02:59]} 2. Nc3 {[%clk 0:03:01]}  d5 {[%clk 0:02:58]} 3. Bg5 {[%clk 0:03:02]}  e6 {[%clk 0:02:57]} 4. e4 {[%clk 0:03:02]}  dxe4 {[%clk 0:02:57]} 5. Nxe4 {[%clk 0:03:03]}  Be7 {[%clk 0:02:58]} 6. Bxf6 {[%clk 0:03:04]}  Bxf6 {[%clk 0:02:58]} 7. Ne2 {[%clk 0:03:04]}  O-O {[%clk 0:02:58]} 8. g3 {[%clk 0:03:04]}  e5 {[%clk 0:02:53]} 9. d5 {[%clk 0:03:02]}  Bf5 {[%clk 0:02:48]} 10. Bg2 {[%clk 0:03:01]}  c6 {[%clk 0:02:47]} 11. O-O {[%clk 0:02:57]}  cxd5 {[%clk 0:02:43]} 12. Qxd5 {[%clk 0:02:57]}  Nc6 {[%clk 0:02:34]} 13. Rad1 {[%clk 0:02:49]}  Qe7 {[%clk 0:02:32]} 14. Rfe1 {[%clk 0:02:23]}  Rfd8 {[%clk 0:02:29]} 15. Qb3 {[%clk 0:02:16]}  Rxd1 {[%clk 0:01:59]} 16. Rxd1 {[%clk 0:02:17]}  Rd8 {[%clk 0:01:48]} 17. c3 {[%clk 0:02:14]}  h6 {[%clk 0:01:44]} 18. Rxd8+ {[%clk 0:01:20]}  Nxd8 {[%clk 0:01:40]} 19. Qa4 {[%clk 0:01:13]}  g6 {[%clk 0:01:24]} 20. Qxa7 {[%clk 0:01:08]}  Kg7 {[%clk 0:01:20]} 21. Qc5 {[%clk 0:00:58]}  Qd7 {[%clk 0:01:17]} 22. Qd6 {[%clk 0:00:55]}  Qe7 {[%clk 0:01:10]} 23. Qxf6+ {[%clk 0:00:50]}  Qxf6 {[%clk 0:01:10]} 24. Nxf6 {[%clk 0:00:51]}  Kxf6 {[%clk 0:01:10]} 25. c4 {[%clk 0:00:52]}  Bd3 {[%clk 0:01:03]} 26. Nc3 {[%clk 0:00:44]}  Bxc4 {[%clk 0:01:03]} 27. b3 {[%clk 0:00:40]}  Be6 {[%clk 0:01:00]} 28. Ne4+ {[%clk 0:00:40]}  Ke7 {[%clk 0:01:00]} 29. Nc5 {[%clk 0:00:40]}  Bc8 {[%clk 0:01:00]} 30. a4 {[%clk 0:00:39]}  b6 {[%clk 0:01:00]} 31. Nd3 {[%clk 0:00:37]}  Kd6 {[%clk 0:00:59]} 32. Kf1 {[%clk 0:00:36]}  f5 {[%clk 0:00:56]} 33. Ke2 {[%clk 0:00:36]}  Ne6 {[%clk 0:00:56]} 34. Kd2 {[%clk 0:00:36]}  Nd4 {[%clk 0:00:55]} 35. Kc3 {[%clk 0:00:34]}  Be6 {[%clk 0:00:53]} 36. b4 {[%clk 0:00:31]}  Ne2+ {[%clk 0:00:53]} 37. Kd2 {[%clk 0:00:31]}  Nd4 {[%clk 0:00:53]} 38. a5 {[%clk 0:00:31]}  bxa5 {[%clk 0:00:52]} 39. bxa5 {[%clk 0:00:32]}  Nb3+ {[%clk 0:00:52]} 40. Ke3 {[%clk 0:00:25]}  Nxa5 {[%clk 0:00:53]} 41. h4 {[%clk 0:00:20]}  Nc4+ {[%clk 0:00:50]} 42. Ke2 {[%clk 0:00:21]}  Nb6 {[%clk 0:00:50]} 43. Nb4 {[%clk 0:00:20]}  Bc4+ {[%clk 0:00:49]} 44. Ke3 {[%clk 0:00:20]}  Nd5+ {[%clk 0:00:49]} 45. Nxd5 {[%clk 0:00:20]}  Bxd5 {[%clk 0:00:50]} 46. Bf1 {[%clk 0:00:20]}  g5 {[%clk 0:00:49]} 47. hxg5 {[%clk 0:00:20]}  hxg5 {[%clk 0:00:50]} 48. Be2 {[%clk 0:00:21]}  Kc5 {[%clk 0:00:43]} 49. Bh5 {[%clk 0:00:21]}  Kc4 {[%clk 0:00:40]} 50. f3 {[%clk 0:00:19]}  Kc3 {[%clk 0:00:37]} 51. Bg6 {[%clk 0:00:19]}  f4+ {[%clk 0:00:33]} 52. gxf4 {[%clk 0:00:19]}  exf4+ {[%clk 0:00:29]} 53. Ke2 {[%clk 0:00:19]}  Kd4 {[%clk 0:00:28]} 54. Bf5 {[%clk 0:00:18]}  Ke5 {[%clk 0:00:28]} 55. Bd3 {[%clk 0:00:19]}  Be6 {[%clk 0:00:23]} 56. Kf2 {[%clk 0:00:18]}  Bf5 {[%clk 0:00:22]} 57. Bxf5 {[%clk 0:00:18]}  Kxf5 {[%clk 0:00:22]} 58. Ke2 {[%clk 0:00:18]}  Ke5 {[%clk 0:00:22]} 59. Kd3 {[%clk 0:00:19]}  Kd5 {[%clk 0:00:23]} 60. Kc3 {[%clk 0:00:19]}  Ke5 {[%clk 0:00:20]} 61. Kd3 {[%clk 0:00:20]}  Kf5 {[%clk 0:00:20]} 62. Kd4 {[%clk 0:00:20]}  Kg6 {[%clk 0:00:20]} 63. Ke4 {[%clk 0:00:20]}  Kh5 {[%clk 0:00:19]} 64. Kf5 {[%clk 0:00:21]}  Kh4 {[%clk 0:00:19]} 65. Ke4 {[%clk 0:00:18]}  Kg3 {[%clk 0:00:20]} 66. Kf5 {[%clk 0:00:18]}  Kxf3 {[%clk 0:00:20]} 67. Kxg5 {[%clk 0:00:19]}  Kg3 {[%clk 0:00:21]} 68. Kf5 {[%clk 0:00:20]}  f3 {[%clk 0:00:21]} 69. Ke4 {[%clk 0:00:21]}  f2 {[%clk 0:00:22]} 70. Ke3 {[%clk 0:00:20]}  f1=Q {[%clk 0:00:23]} 0-1


[Site "https://www.chess.com"]

[Event "Titled Tuesday Blitz June 20 Late 2023"]
[White "Koellner, Ruben Gideon"]
[Black "Sanchez, Robert"]
[WhiteFideId "12993093"]
[BlackFideId "2034360"]
[WhiteElo "2314"]
[BlackElo "2081"]
[Result "1-0"]
[Round "4"]
[TimeControl "180+2"]
[Date "2023.06.20"]
[WhiteClock "0:00:37"]
[BlackClock "0:00:05"]
[Board "83"]

1. d4 {[%clk 0:03:00]}  Nf6 {[%clk 0:02:59]} 2. Nf3 {[%clk 0:03:00]}  g6 {[%clk 0:02:59]} 3. Nbd2 {[%clk 0:03:00]}  d5 {[%clk 0:02:55]} 4. e3 {[%clk 0:03:00]}  Bg7 {[%clk 0:02:56]} 5. b4 {[%clk 0:03:00]}  O-O {[%clk 0:02:56]} 6. c4 {[%clk 0:03:00]}  c6 {[%clk 0:02:56]} 7. Bb2 {[%clk 0:03:00]}  Bf5 {[%clk 0:02:54]} 8. a4 {[%clk 0:03:00]}  h6 {[%clk 0:02:52]} 9. Be2 {[%clk 0:03:01]}  Re8 {[%clk 0:02:52]} 10. O-O {[%clk 0:03:01]}  g5 {[%clk 0:02:49]} 11. cxd5 {[%clk 0:02:57]}  cxd5 {[%clk 0:02:47]} 12. b5 {[%clk 0:02:53]}  Nbd7 {[%clk 0:02:46]} 13. Qb3 {[%clk 0:02:48]}  Rc8 {[%clk 0:02:38]} 14. Rfc1 {[%clk 0:02:48]}  e6 {[%clk 0:02:18]} 15. a5 {[%clk 0:02:38]}  Rxc1+ {[%clk 0:02:14]} 16. Rxc1 {[%clk 0:02:38]}  Qxa5 {[%clk 0:02:13]} 17. Ra1 {[%clk 0:02:36]}  Qb6 {[%clk 0:02:10]} 18. Bc3 {[%clk 0:02:32]}  Rc8 {[%clk 0:01:39]} 19. Ba5 {[%clk 0:02:26]}  Qd6 {[%clk 0:01:38]} 20. Bb4 {[%clk 0:02:26]}  Qb8 {[%clk 0:01:38]} 21. Qa3 {[%clk 0:02:22]}  Kh7 {[%clk 0:01:14]} 22. h3 {[%clk 0:02:19]}  Ne4 {[%clk 0:00:59]} 23. Nxe4 {[%clk 0:02:17]}  Bxe4 {[%clk 0:00:59]} 24. Bd6 {[%clk 0:02:17]}  Qa8 {[%clk 0:00:56]} 25. Qxa7 {[%clk 0:02:09]}  Rc1+ {[%clk 0:00:55]} 26. Rxc1 {[%clk 0:02:02]}  Qxa7 {[%clk 0:00:55]} 27. Rc7 {[%clk 0:02:02]}  Nf6 {[%clk 0:00:30]} 28. Rxf7 {[%clk 0:02:01]}  Kg8 {[%clk 0:00:28]} 29. Rc7 {[%clk 0:01:57]}  Qa2 {[%clk 0:00:23]} 30. Bf1 {[%clk 0:01:37]}  Qb1 {[%clk 0:00:17]} 31. Be5 {[%clk 0:01:34]}  Bxf3 {[%clk 0:00:14]} 32. gxf3 {[%clk 0:01:33]}  Ne8 {[%clk 0:00:14]} 33. Rxb7 {[%clk 0:01:27]}  Bxe5 {[%clk 0:00:14]} 34. dxe5 {[%clk 0:01:28]}  Qf5 {[%clk 0:00:13]} 35. b6 {[%clk 0:01:18]}  Qxe5 {[%clk 0:00:12]} 36. Rd7 {[%clk 0:01:12]}  Nd6 {[%clk 0:00:12]} 37. b7 {[%clk 0:01:10]}  Nxb7 {[%clk 0:00:12]} 38. Rxb7 {[%clk 0:01:11]}  h5 {[%clk 0:00:11]} 39. Kg2 {[%clk 0:01:10]}  d4 {[%clk 0:00:10]} 40. exd4 {[%clk 0:01:04]}  Qxd4 {[%clk 0:00:11]} 41. Re7 {[%clk 0:01:02]}  g4 {[%clk 0:00:10]} 42. hxg4 {[%clk 0:00:48]}  hxg4 {[%clk 0:00:11]} 43. Rxe6 {[%clk 0:00:47]}  gxf3+ {[%clk 0:00:10]} 44. Kxf3 {[%clk 0:00:48]}  Kf7 {[%clk 0:00:09]} 45. Re4 {[%clk 0:00:44]}  Qc3+ {[%clk 0:00:07]} 46. Kg2 {[%clk 0:00:38]}  Qe1 {[%clk 0:00:05]} 47. Rxe1 {[%clk 0:00:37]} 1-0


[Site "https://www.chess.com"]

[Event "Titled Tuesday Blitz June 20 Late 2023"]
[White "Golubev, Mikhail"]
[Black "Harsh Suresh"]
[WhiteFideId "14100983"]
[BlackFideId "45018464"]
[WhiteElo "2374"]
[BlackElo "2209"]
[Result "0-1"]
[Round "4"]
[TimeControl "180+2"]
[Date "2023.06.20"]
[WhiteClock "0:00:00"]
[BlackClock "0:00:13"]
[Board "87"]

1. e4 {[%clk 0:03:00]}  Nf6 {[%clk 0:02:55]} 2. Nc3 {[%clk 0:02:59]}  d5 {[%clk 0:02:54]} 3. e5 {[%clk 0:02:59]}  Nfd7 {[%clk 0:02:54]} 4. f4 {[%clk 0:02:57]}  e6 {[%clk 0:02:51]} 5. d4 {[%clk 0:02:56]}  c5 {[%clk 0:02:52]} 6. Nf3 {[%clk 0:02:56]}  Nc6 {[%clk 0:02:50]} 7. Be3 {[%clk 0:02:56]}  cxd4 {[%clk 0:02:46]} 8. Nxd4 {[%clk 0:02:56]}  Qb6 {[%clk 0:02:45]} 9. Qd2 {[%clk 0:02:56]}  Qxb2 {[%clk 0:02:42]} 10. Rb1 {[%clk 0:02:56]}  Qa3 {[%clk 0:02:41]} 11. Bb5 {[%clk 0:02:55]}  Nxd4 {[%clk 0:02:24]} 12. Bxd4 {[%clk 0:02:55]}  Qa5 {[%clk 0:02:22]} 13. O-O {[%clk 0:02:42]}  Be7 {[%clk 0:02:14]} 14. Bxd7+ {[%clk 0:02:25]}  Bxd7 {[%clk 0:02:13]} 15. Rxb7 {[%clk 0:02:26]}  Bc6 {[%clk 0:02:08]} 16. Rxe7+ {[%clk 0:02:21]}  Kxe7 {[%clk 0:02:09]} 17. f5 {[%clk 0:02:21]}  h6 {[%clk 0:01:59]} 18. fxe6 {[%clk 0:01:54]}  fxe6 {[%clk 0:01:47]} 19. Qf2 {[%clk 0:01:54]}  Be8 {[%clk 0:01:42]} 20. Qg3 {[%clk 0:01:41]}  Rg8 {[%clk 0:01:26]} 21. Rb1 {[%clk 0:01:26]}  Rc8 {[%clk 0:01:25]} 22. Rb7+ {[%clk 0:00:58]}  Rc7 {[%clk 0:01:24]} 23. Rb8 {[%clk 0:00:57]}  Bf7 {[%clk 0:00:48]} 24. Rxg8 {[%clk 0:00:49]}  Bxg8 {[%clk 0:00:49]} 25. Qxg7+ {[%clk 0:00:50]}  Bf7 {[%clk 0:00:49]} 26. Qf6+ {[%clk 0:00:14]}  Ke8 {[%clk 0:00:46]} 27. Qh8+ {[%clk 0:00:14]}  Kd7 {[%clk 0:00:46]} 28. Qf8 {[%clk 0:00:15]}  Be8 {[%clk 0:00:32]} 29. Qd6+ {[%clk 0:00:14]}  Kc8 {[%clk 0:00:32]} 30. Qxe6+ {[%clk 0:00:14]}  Bd7 {[%clk 0:00:32]} 31. Qg8+ {[%clk 0:00:12]}  Kb7 {[%clk 0:00:32]} 32. e6 {[%clk 0:00:10]}  Qb4 {[%clk 0:00:13]} 33. exd7 {[%clk 0:00:02]}  Qxd4+ {[%clk 0:00:12]} 34. Kh1 {[%clk 0:00:01]}  Rxd7 {[%clk 0:00:13]} 35. Ne2 {[%clk 0:00:01]}  Qd1+ {[%clk 0:00:11]} 36. Ng1 {[%clk 0:00:02]}  Qxc2 {[%clk 0:00:11]} 37. Qe6 {[%clk 0:00:02]}  Qc6 {[%clk 0:00:12]} 38. Qe3 {[%clk 0:00:01]}  d4 {[%clk 0:00:12]} 39. Qb3+ {[%clk 0:00:02]}  Qb6 {[%clk 0:00:13]} 40. Qg3 {[%clk 0:00:02]}  d3 {[%clk 0:00:12]} 41. Qf3+ {[%clk 0:00:00]}  Qc6 {[%clk 0:00:13]} 0-1


[Site "https://www.chess.com"]

[Event "Titled Tuesday Blitz June 20 Late 2023"]
[White "Yuan, Qingyu"]
[Black "Zaitsev, Alexander"]
[WhiteFideId "8609772"]
[BlackFideId "4164490"]
[WhiteElo "2359"]
[BlackElo "2373"]
[Result "1-0"]
[Round "4"]
[TimeControl "180+2"]
[Date "2023.06.20"]
[WhiteClock "0:00:17"]
[BlackClock "0:00:00"]
[Board "88"]

1. e4 {[%clk 0:03:00]}  c5 {[%clk 0:02:59]} 2. Nf3 {[%clk 0:03:01]}  g6 {[%clk 0:03:00]} 3. c3 {[%clk 0:03:00]}  Bg7 {[%clk 0:03:00]} 4. d4 {[%clk 0:03:01]}  cxd4 {[%clk 0:03:00]} 5. cxd4 {[%clk 0:03:02]}  d5 {[%clk 0:03:01]} 6. e5 {[%clk 0:03:02]}  a6 {[%clk 0:03:02]} 7. h3 {[%clk 0:03:00]}  Nc6 {[%clk 0:03:02]} 8. Nc3 {[%clk 0:03:00]}  f6 {[%clk 0:03:02]} 9. Bf4 {[%clk 0:02:53]}  Nh6 {[%clk 0:02:46]} 10. Qd2 {[%clk 0:02:43]}  Nf7 {[%clk 0:02:42]} 11. exf6 {[%clk 0:02:40]}  exf6 {[%clk 0:02:35]} 12. Be2 {[%clk 0:02:33]}  O-O {[%clk 0:02:33]} 13. O-O {[%clk 0:02:33]}  Kh8 {[%clk 0:01:59]} 14. Rfe1 {[%clk 0:02:30]}  Nd6 {[%clk 0:01:51]} 15. Nxd5 {[%clk 0:02:11]}  Ne4 {[%clk 0:01:51]} 16. Qc2 {[%clk 0:02:11]}  Qxd5 {[%clk 0:01:49]} 17. Bc4 {[%clk 0:02:08]}  Nxd4 {[%clk 0:01:17]} 18. Nxd4 {[%clk 0:02:02]}  Qxd4 {[%clk 0:01:17]} 19. Rxe4 {[%clk 0:01:52]}  Qc5 {[%clk 0:01:09]} 20. Be3 {[%clk 0:01:46]}  Qc6 {[%clk 0:01:09]} 21. Rh4 {[%clk 0:01:22]}  Bf5 {[%clk 0:01:02]} 22. Qb3 {[%clk 0:01:21]}  Rfd8 {[%clk 0:00:37]} 23. Rd1 {[%clk 0:00:55]}  Rxd1+ {[%clk 0:00:34]} 24. Qxd1 {[%clk 0:00:56]}  Rc8 {[%clk 0:00:28]} 25. Rd4 {[%clk 0:00:46]}  Re8 {[%clk 0:00:19]} 26. Bd5 {[%clk 0:00:43]}  Qb5 {[%clk 0:00:17]} 27. Qd2 {[%clk 0:00:37]}  Bc8 {[%clk 0:00:14]} 28. Bf7 {[%clk 0:00:34]}  Rf8 {[%clk 0:00:13]} 29. Rd8 {[%clk 0:00:32]}  Qc6 {[%clk 0:00:00]} 30. Bf4 {[%clk 0:00:17]} 1-0


[Site "https://www.chess.com"]

[Event "Titled Tuesday Blitz June 20 Late 2023"]
[White "Ortega Amarelle, Mariano"]
[Black "Fernandez Guillen, Ernesto J."]
[WhiteFideId "3504301"]
[BlackFideId "3512428"]
[WhiteElo "2392"]
[BlackElo "2434"]
[Result "1-0"]
[Round "4"]
[TimeControl "180+2"]
[Date "2023.06.20"]
[WhiteClock "0:00:08"]
[BlackClock "0:00:00"]
[Board "89"]

1. b3 {[%clk 0:02:52]}  Nf6 {[%clk 0:02:59]} 2. Bb2 {[%clk 0:02:53]}  g6 {[%clk 0:02:59]} 3. c4 {[%clk 0:02:51]}  Bg7 {[%clk 0:02:59]} 4. g3 {[%clk 0:02:51]}  O-O {[%clk 0:02:59]} 5. Bg2 {[%clk 0:02:52]}  c6 {[%clk 0:03:00]} 6. Nf3 {[%clk 0:02:51]}  d5 {[%clk 0:03:00]} 7. O-O {[%clk 0:02:50]}  Nbd7 {[%clk 0:02:59]} 8. d4 {[%clk 0:02:43]}  b6 {[%clk 0:02:58]} 9. Nbd2 {[%clk 0:02:44]}  Bb7 {[%clk 0:02:57]} 10. e3 {[%clk 0:02:44]}  Rc8 {[%clk 0:02:48]} 11. Qe2 {[%clk 0:02:43]}  c5 {[%clk 0:02:35]} 12. Rfd1 {[%clk 0:02:40]}  Qc7 {[%clk 0:02:21]} 13. Rac1 {[%clk 0:02:37]}  Qb8 {[%clk 0:02:16]} 14. cxd5 {[%clk 0:02:20]}  Nxd5 {[%clk 0:02:15]} 15. Nc4 {[%clk 0:02:06]}  Rfd8 {[%clk 0:02:04]} 16. dxc5 {[%clk 0:02:04]}  Nxc5 {[%clk 0:02:05]} 17. Bxg7 {[%clk 0:02:04]}  Kxg7 {[%clk 0:02:06]} 18. Nd4 {[%clk 0:01:38]}  Nf6 {[%clk 0:02:00]} 19. b4 {[%clk 0:01:30]}  Bxg2 {[%clk 0:01:54]} 20. Kxg2 {[%clk 0:01:29]}  Nce4 {[%clk 0:01:51]} 21. b5 {[%clk 0:01:27]}  Qb7 {[%clk 0:01:37]} 22. Nc6 {[%clk 0:01:17]}  Rxd1 {[%clk 0:01:24]} 23. Qxd1 {[%clk 0:01:18]}  a6 {[%clk 0:01:21]} 24. a4 {[%clk 0:01:18]}  axb5 {[%clk 0:01:20]} 25. axb5 {[%clk 0:01:19]}  h5 {[%clk 0:00:57]} 26. Qd4 {[%clk 0:01:11]}  Nc5 {[%clk 0:00:55]} 27. Rc2 {[%clk 0:01:01]}  Rc7 {[%clk 0:00:48]} 28. f3 {[%clk 0:00:53]}  Rd7 {[%clk 0:00:43]} 29. Qe5 {[%clk 0:00:52]}  Nd3 {[%clk 0:00:41]} 30. Qc3 {[%clk 0:00:53]}  h4 {[%clk 0:00:34]} 31. e4 {[%clk 0:00:51]}  h3+ {[%clk 0:00:11]} 32. Kxh3 {[%clk 0:00:45]}  Kg8 {[%clk 0:00:11]} 33. N4e5 {[%clk 0:00:40]}  Nxe5 {[%clk 0:00:08]} 34. Qxe5 {[%clk 0:00:40]}  Ne8 {[%clk 0:00:06]} 35. Qb8 {[%clk 0:00:29]}  Qxb8 {[%clk 0:00:06]} 36. Nxb8 {[%clk 0:00:30]}  Rc7 {[%clk 0:00:05]} 37. Nc6 {[%clk 0:00:24]}  Kf8 {[%clk 0:00:05]} 38. e5 {[%clk 0:00:21]}  Rd7 {[%clk 0:00:04]} 39. f4 {[%clk 0:00:21]}  Nc7 {[%clk 0:00:05]} 40. Rb2 {[%clk 0:00:16]}  Rd5 {[%clk 0:00:04]} 41. Kg4 {[%clk 0:00:14]}  Rxb5 {[%clk 0:00:04]} 42. Ra2 {[%clk 0:00:10]}  Rc5 {[%clk 0:00:00]} 43. Nb4 {[%clk 0:00:08]} 1-0


[Site "https://www.chess.com"]

[Event "Titled Tuesday Blitz June 20 Late 2023"]
[White "Can, Isik"]
[Black "Novikov, Evgenij"]
[WhiteFideId "6383742"]
[BlackFideId "4125380"]
[WhiteElo "2374"]
[BlackElo "2242"]
[Result "1-0"]
[Round "4"]
[TimeControl "180+2"]
[Date "2023.06.20"]
[WhiteClock "0:00:30"]
[BlackClock "0:00:07"]
[Board "90"]

1. e4 {[%clk 0:03:00]}  c5 {[%clk 0:02:59]} 2. Nf3 {[%clk 0:02:59]}  d6 {[%clk 0:03:00]} 3. d4 {[%clk 0:02:59]}  cxd4 {[%clk 0:03:01]} 4. Nxd4 {[%clk 0:03:00]}  Nf6 {[%clk 0:03:01]} 5. Nc3 {[%clk 0:03:01]}  g6 {[%clk 0:03:02]} 6. f3 {[%clk 0:03:00]}  Bg7 {[%clk 0:03:02]} 7. Be3 {[%clk 0:03:00]}  O-O {[%clk 0:03:03]} 8. Qd2 {[%clk 0:03:00]}  Nc6 {[%clk 0:03:03]} 9. O-O-O {[%clk 0:03:00]}  Bd7 {[%clk 0:03:03]} 10. Bc4 {[%clk 0:02:41]}  Rc8 {[%clk 0:03:02]} 11. Bb3 {[%clk 0:02:41]}  Ne5 {[%clk 0:03:02]} 12. g4 {[%clk 0:02:37]}  Nc4 {[%clk 0:03:02]} 13. Bxc4 {[%clk 0:02:37]}  Rxc4 {[%clk 0:03:03]} 14. h4 {[%clk 0:02:08]}  h5 {[%clk 0:03:02]} 15. gxh5 {[%clk 0:02:03]}  Nxh5 {[%clk 0:03:02]} 16. Nde2 {[%clk 0:02:04]}  Qa5 {[%clk 0:02:55]} 17. Kb1 {[%clk 0:01:58]}  Rfc8 {[%clk 0:02:45]} 18. Nd5 {[%clk 0:01:53]}  Qxd2 {[%clk 0:02:33]} 19. Rxd2 {[%clk 0:01:53]}  Kf8 {[%clk 0:02:29]} 20. Bxa7 {[%clk 0:01:52]}  Ra4 {[%clk 0:02:02]} 21. Be3 {[%clk 0:01:44]}  Ra6 {[%clk 0:01:56]} 22. Nb6 {[%clk 0:01:42]}  Rc7 {[%clk 0:01:55]} 23. Nxd7+ {[%clk 0:01:42]}  Rxd7 {[%clk 0:01:56]} 24. c3 {[%clk 0:01:38]}  b5 {[%clk 0:01:50]} 25. a3 {[%clk 0:01:37]}  Bf6 {[%clk 0:01:42]} 26. Rd5 {[%clk 0:01:32]}  Rb7 {[%clk 0:01:40]} 27. Bg5 {[%clk 0:01:29]}  Bxg5 {[%clk 0:01:36]} 28. hxg5 {[%clk 0:01:30]}  Ke8 {[%clk 0:01:35]} 29. Rhd1 {[%clk 0:01:23]}  Rc6 {[%clk 0:01:27]} 30. e5 {[%clk 0:01:22]}  Rbb6 {[%clk 0:01:22]} 31. exd6 {[%clk 0:01:17]}  Rxd6 {[%clk 0:01:22]} 32. Rxd6 {[%clk 0:01:17]}  exd6 {[%clk 0:01:23]} 33. Nd4 {[%clk 0:01:17]}  Kd7 {[%clk 0:01:18]} 34. Kc2 {[%clk 0:01:16]}  Rb8 {[%clk 0:01:16]} 35. Re1 {[%clk 0:01:13]}  Nf4 {[%clk 0:01:15]} 36. Re4 {[%clk 0:01:10]}  Ne6 {[%clk 0:01:11]} 37. f4 {[%clk 0:01:08]}  Nc5 {[%clk 0:01:09]} 38. Re2 {[%clk 0:01:04]}  Rh8 {[%clk 0:01:03]} 39. Nxb5 {[%clk 0:01:02]}  Rh4 {[%clk 0:01:03]} 40. Rd2 {[%clk 0:01:01]}  Ne4 {[%clk 0:01:02]} 41. Rd4 {[%clk 0:00:58]}  Rxf4 {[%clk 0:01:02]} 42. b4 {[%clk 0:00:51]}  Kc6 {[%clk 0:00:53]} 43. a4 {[%clk 0:00:51]}  Rf2+ {[%clk 0:00:46]} 44. Kc1 {[%clk 0:00:47]}  d5 {[%clk 0:00:40]} 45. c4 {[%clk 0:00:47]}  Rf1+ {[%clk 0:00:38]} 46. Kc2 {[%clk 0:00:46]}  Rf2+ {[%clk 0:00:38]} 47. Kd1 {[%clk 0:00:44]}  Rf5 {[%clk 0:00:27]} 48. Rxe4 {[%clk 0:00:32]}  dxe4 {[%clk 0:00:26]} 49. Nd4+ {[%clk 0:00:32]}  Kb6 {[%clk 0:00:22]} 50. Nxf5 {[%clk 0:00:33]}  gxf5 {[%clk 0:00:23]} 51. a5+ {[%clk 0:00:33]}  Ka6 {[%clk 0:00:22]} 52. Ke2 {[%clk 0:00:29]}  f4 {[%clk 0:00:22]} 53. Kf2 {[%clk 0:00:29]}  e3+ {[%clk 0:00:15]} 54. Kf3 {[%clk 0:00:30]}  Kb7 {[%clk 0:00:13]} 55. b5 {[%clk 0:00:30]}  Kc7 {[%clk 0:00:13]} 56. c5 {[%clk 0:00:30]}  Kb7 {[%clk 0:00:13]} 57. a6+ {[%clk 0:00:30]}  Ka7 {[%clk 0:00:14]} 58. Ke2 {[%clk 0:00:29]}  f3+ {[%clk 0:00:11]} 59. Kxf3 {[%clk 0:00:29]}  e2 {[%clk 0:00:12]} 60. Kxe2 {[%clk 0:00:30]}  Kb8 {[%clk 0:00:12]} 61. b6 {[%clk 0:00:30]}  Ka8 {[%clk 0:00:12]} 62. c6 {[%clk 0:00:31]}  Kb8 {[%clk 0:00:07]} 63. Ke3 {[%clk 0:00:30]} 1-0


[Site "https://www.chess.com"]

[Event "Titled Tuesday Blitz June 20 Late 2023"]
[White "Fodor, Tamas Jr."]
[Black "Uzcategui Rodriguez, Alejandro"]
[WhiteFideId "723762"]
[BlackFideId "3903400"]
[WhiteElo "2504"]
[BlackElo "2252"]
[Result "1-0"]
[Round "4"]
[TimeControl "180+2"]
[Date "2023.06.20"]
[WhiteClock "0:00:25"]
[BlackClock "0:00:00"]
[Board "91"]

1. d4 {[%clk 0:03:00]}  d6 {[%clk 0:02:56]} 2. e4 {[%clk 0:02:55]}  Nf6 {[%clk 0:02:56]} 3. Nc3 {[%clk 0:02:54]}  e5 {[%clk 0:02:53]} 4. Nf3 {[%clk 0:02:52]}  Nbd7 {[%clk 0:02:47]} 5. g4 {[%clk 0:02:52]}  Nxg4 {[%clk 0:02:44]} 6. Rg1 {[%clk 0:02:49]}  Ngf6 {[%clk 0:02:41]} 7. Bc4 {[%clk 0:02:40]}  h6 {[%clk 0:02:36]} 8. Be3 {[%clk 0:02:32]}  c6 {[%clk 0:02:32]} 9. Qd2 {[%clk 0:02:32]}  b5 {[%clk 0:02:17]} 10. Bd3 {[%clk 0:02:28]}  Qa5 {[%clk 0:02:14]} 11. d5 {[%clk 0:02:12]}  cxd5 {[%clk 0:02:07]} 12. exd5 {[%clk 0:01:56]}  b4 {[%clk 0:01:55]} 13. Ne4 {[%clk 0:01:45]}  Nxe4 {[%clk 0:01:55]} 14. Bxe4 {[%clk 0:01:44]}  Nf6 {[%clk 0:01:55]} 15. Bd3 {[%clk 0:01:04]}  e4 {[%clk 0:01:53]} 16. Nd4 {[%clk 0:01:04]}  exd3 {[%clk 0:01:50]} 17. Qxd3 {[%clk 0:01:02]}  Qxd5 {[%clk 0:01:31]} 18. Rd1 {[%clk 0:00:57]}  g6 {[%clk 0:01:22]} 19. Qe2 {[%clk 0:00:54]}  Qe4 {[%clk 0:00:45]} 20. Nb5 {[%clk 0:00:52]}  Rb8 {[%clk 0:00:37]} 21. Rd4 {[%clk 0:00:41]}  Qc6 {[%clk 0:00:32]} 22. Nxa7 {[%clk 0:00:39]}  Qb7 {[%clk 0:00:27]} 23. Bg5+ {[%clk 0:00:33]}  Be6 {[%clk 0:00:23]} 24. Bxf6 {[%clk 0:00:32]}  Rg8 {[%clk 0:00:14]} 25. Re4 {[%clk 0:00:32]}  Qxa7 {[%clk 0:00:12]} 26. Rxe6+ {[%clk 0:00:31]}  fxe6 {[%clk 0:00:07]} 27. Qxe6+ {[%clk 0:00:32]}  Be7 {[%clk 0:00:06]} 28. Qxg8+ {[%clk 0:00:32]}  Kd7 {[%clk 0:00:07]} 29. Qxg6 {[%clk 0:00:31]}  Bxf6 {[%clk 0:00:05]} 30. Qxf6 {[%clk 0:00:30]}  Re8+ {[%clk 0:00:06]} 31. Kd1 {[%clk 0:00:28]}  Qxa2 {[%clk 0:00:06]} 32. Rg7+ {[%clk 0:00:27]}  Kc6 {[%clk 0:00:07]} 33. Qf3+ {[%clk 0:00:27]}  d5 {[%clk 0:00:00]} 34. Qf6+ {[%clk 0:00:25]} 1-0


[Site "https://www.chess.com"]